Cogmind - Beta 11 @@@ ROGUE MODE // 2022.04.03 @ 15:20:38 Player: tuonii Result: Destroyed by G-47 Trooper with Particle Gun Performance ------------- Evolutions (0) 0 Regions Visited (1) 200 Robots Destroyed (4) 20 Value Destroyed (126) 126 Prototype IDs (0) 0 Alien Tech Used (0) 0 Bonus (0) 0 TOTAL SCORE: 346 Bonus ------- None Cogmind --------- Core Integrity 0/250 Matter 300/300 Energy 99/100 System Corruption 0% Temperature Cool (9) Movement Core (50) Location -10/Materials Parts ------- > --- POWER (1) -------- (None) > --- PROPULSION (2) --- (None) > --- UTILITY (2) ------ (None) > --- WEAPON (2) ------- (None) > --- INVENTORY (5) ---- Aluminum Leg Wheel Peak State ------------ > --- POWER ------------ Light Ion Engine > --- PROPULSION ------- Aluminum Leg Wheel > --- UTILITY ---------- Medium Matter Pod > --- WEAPON ----------- EM Pulse Gun EM Pulse Gun > --- INVENTORY -------- Light Ion Engine Aluminum Leg Wheel [Rating: 6] Favorites ----------- Power Light Ion Engine Engine Light Ion Engine Propulsion Wheel Leg Aluminum Leg Wheel Wheel Utility Medium Matter Pod Storage Medium Matter Pod Weapon EM Pulse Gun Energy Gun EM Pulse Gun Launcher Grenade Launcher Special Weapon Welding Torch Build | -11 -10 ------- Run | Scr Mat Slots Evolved . | . . Power . | . . Propulsion . | . . Utility . | . . Weapon . | . . Parts Attached 9 | 7 2 Power 1 | 1 . Engine 1 | 1 . Core . | . . Reactor . | . . Propulsion 3 | 3 . Treads . | . . Leg 1 | 1 . Wheel 2 | 2 . Hover . | . . Flight . | . . Utility 1 | 1 . Device . | . . Storage 1 | 1 . Processor . | . . Hackware . | . . Protection . | . . Artifact . | . . Weapon 4 | 2 2 Energy Gun 2 | 2 . Energy Cannon . | . . Ballistic Gun . | . . Ballistic Cannon . | . . Launcher 1 | . 1 Special Weapon 1 | . 1 Impact Weapon . | . . Slashing Weapon . | . . Piercing Weapon . | . . Special Melee Weapon . | . . Unidentified Prototypes . | . . Parts Lost 8 | . 8 Power 1 | . 1 Propulsion 2 | . 2 Utility 1 | . 1 Weapon 4 | . 4 Highest Loss Streak 8 | . 8 To Critical Strikes . | . . Average Slot Usage (%) 50 | . 50 Engine 8 | . 8 Wheel 17 | . 17 Storage 8 | . 8 Energy Gun 14 | . 14 Naked Turns 60 | . 60 Heaviest Build 9 | 9 9 Greatest Support 20 | 20 20 Greatest Overweight (x) . | . . Average Overweight (x) . | . . Largest Inventory Capacity 5 | 5 5 Average Capacity 5 | 5 5 Most Carried 5 | 5 2 Average Carried 1 | 2 . Final Capacity 5 | 5 5 Final Carried 2 | . 2 Class Distribution -------------------- 100% | Mutant Dominant Class ---------------- Mutant | -10/Materials Resources | -11 -10 ----------- Run | Scr Mat Matter Collected 276 | 275 1 Remotely . | . . Salvage Created 121 | 69 52 Parts 8 | 7 1 Haulers Intercepted . | . . Recyclers Shooed . | . . Parts Field Recycled . | . . Retrieved Matter . | . . Parts Self-Destructed . | . . Prevented . | . . Kills | -11 -10 ------- Run | Scr Mat Combat Hostiles Destroyed 3 | 1 2 Guns 1 | 1 . AOE 2 | . 2 Classes Destroyed 2 | 2 . Worker 1 | 1 . Grunt 3 | 1 2 Best Kill Streak 2 | 1 2 Combat Bots Only 2 | 1 2 Max Kills in Single Turn 1 | 1 1 Gunslinging . | . . Exploded 1 | . 1 Melee . | . . Uniques/NPCs Destroyed . | . . Combat | -11 -10 -------- Run | Scr Mat Damage Taken 629 | 16 613 Core 263 | 15 248 Absorbed by Shields . | . . Core Remaining (%) 94 | 94 . Volleys Fired 15 | 1 14 Largest 2 | 2 2 Hottest 80 | 80 80 Shots Fired 19 | 2 17 Gun 11 | 2 9 Cannon . | . . Launcher 4 | . 4 Special 4 | . 4 Kinetic . | . . Thermal 4 | . 4 Explosive 4 | . 4 Electromagnetic 11 | 2 9 Robot Hit Streak 6 | 1 6 Robot Miss Streak 4 | . 4 Penetration Max . | . . Secondary Targets . | . . Shots Hit Robots 10 | 1 9 Core Hits 10 | 2 8 Critical Kills . | . . Critical Parts Destroyed . | . . Critical Strikes . | . . Melee Attacks . | . . Impact . | . . Slashing . | . . Piercing . | . . Sneak Attacks . | . . Combat Hostiles . | . . Follow-up Attacks . | . . Damage Inflicted 421 | 29 392 Guns 88 | 15 73 Cannons . | . . Explosions 313 | . 313 Melee . | . . Ramming 14 | 14 . Kinetic . | . . Thermal 6 | . 6 Explosive 313 | . 313 Electromagnetic 88 | 15 73 Impact . | . . Slashing . | . . Piercing . | . . Highest Corruption . | . . Average Corruption . | . . Corruption Purged . | . . Corruption Blocked . | . . Overload Shots . | . . Overflow Damage . | . . Projectiles . | . . Explosions . | . . Melee . | . . Knockbacks . | . . Impact . | . . Kinetic . | . . Secondary . | . . Self-Inflicted Damage 62 | 6 56 Shots 4 | . 4 Rammed 3 | 2 1 Targets Rammed 3 | 2 1 Kicked . | . . Crushed . | . . Highest Temperature 79 | 18 79 Average Temperature 28 | 12 30 Received Heat Transfer 315 | 6 309 Siege Activations . | . . Robots Corrupted . | . . Combat Hostiles . | . . Parts Fried . | . . Impact Corruptions . | . . Robots Melted . | . . Combat Hostiles . | . . Parts Melted . | . . Heat Transferred 50 | . 50 Parts Sabotaged . | . . Parts Stolen . | . . Parts Stripped . | . . Power Chain Reactions . | . . Missiles Intercepted . | . . Alert | -11 -10 ------- Run | Scr Mat Peak Influence 187 | 25 187 Initial 16 | . 16 Average 52 | 4 78 Maximum Alert Level . | . . Low Security (%) 100 | 100 100 Level 1 . | . . Level 2 . | . . Level 3 . | . . Level 4 . | . . Level 5 . | . . High Security . | . . Max Security . | . . Squads Dispatched 1 | . 1 Investigation . | . . Extermination . | . . Reinforcement 1 | . 1 Assault . | . . Garrison . | . . Intercept . | . . Searches Triggered . | . . Construction Impeded . | . . Haulers Reinforced . | . . Active Scanning Responses . | . . Cargo Convoy Interrupts . | . . Stealth | -11 -10 --------- Run | Scr Mat Distress Signals . | . . Communications Jammed . | . . Distress Signals . | . . Times Spotted 10 | 1 9 Peak Tracking Total 7 | 1 7 Tactical Retreats 2 | . 2 Traps | -11 -10 ------- Run | Scr Mat Traps Triggered . | . . Indirectly . | . . Trap Hack Attempts . | . . Triggered . | . . Disarmed . | . . Reprogrammed . | . . Reused . | . . Traps Extracted . | . . Installed . | . . Triggered . | . . Machines | -11 -10 ---------- Run | Scr Mat Machines Disabled 1 | . 1 Max in Single Turn 1 | . 1 Machines Sabotaged . | . . Garrisons Compromised . | . . Overloaded Fab Kills . | . . Hacking | -11 -10 --------- Run | Scr Mat Machines Accessed . | . . Terminals . | . . Fabricators . | . . Repair Stations . | . . Recycling Units . | . . Scanalyzers . | . . Garrison Access . | . . Total Hacks . | . . Successful . | . . Failed . | . . Catastrophic . | . . Database Lockouts . | . . Manual . | . . Terminals . | . . Fabricators . | . . Repair Stations . | . . Recycling Units . | . . Scanalyzers . | . . Garrison Access . | . . Terminal Hacks . | . . Fabricator Hacks . | . . Repair Station Hacks . | . . Recycling Unit Hacks . | . . Scanalyzer . | . . Garrison Access Hacks . | . . Unauthorized Hacks . | . . Terminals . | . . Fabricators . | . . Repair Stations . | . . Recycling Units . | . . Scanalyzers . | . . Garrison Access . | . . Data Cores Recovered . | . . Used . | . . Hacking Detections . | . . Full Trace Events . | . . Feedback Events . | . . Feedback Blocked . | . . Robot Schematics Acquired . | . . Robots Built . | . . Authchips . | . . Time . | . . Total Robot Build Rating . | . . Part Schematics Acquired . | . . Parts Built . | . . Authchips . | . . Time . | . . Total Part Build Rating . | . . Parts Repaired . | . . Time . | . . Parts Recycled . | . . Recycled Matter . | . . Retrieved Matter . | . . Retrieved Components . | . . Parts Scanalyzed . | . . Part Schematics Acquired . | . . Parts Damaged . | . . Bothacking | -11 -10 ------------ Run | Scr Mat Used RIF Installer . | . . Robots Hacked . | . . Non-combat . | . . Combat . | . . Robot Hacks Applied . | . . Relay Couplers Released . | . . Fabnet Peak Effective % . | . . Robots Rewired . | . . Allies Hacked . | . . Hacks Repelled . | . . Allies | -11 -10 -------- Run | Scr Mat Total Allies . | . . Largest Group . | . . Highest-Rated Group . | . . Highest-Rated Ally . | . . Total Orders . | . . Ally Attacks . | . . Total Damage . | . . Kills . | . . Allies Corrupted . | . . Allies Melted . | . . Intel | -11 -10 ------- Run | Scr Mat Robot Analysis Total . | . . Derelict Logs Recovered . | . . Drone Launches . | . . Drone Recoveries . | . . Exploration | -11 -10 ------------- Run | Scr Mat Turns Passed 291 | 103 188 Spaces Moved 358 | 130 228 Core 192 | 80 112 Treads . | . . Legs . | . . Wheels 166 | 50 116 Hover . | . . Flight . | . . Fastest Speed 50 | 50 50 Average Speed 63 | 61 65 Slowest Speed 80 | 80 80 Overloaded Moves . | . . Propulsion Burnouts . | . . Robots Hopped . | . . Cave-ins Triggered . | . . Exploration Rate (%) 16 | 7 25 Regions Visited 1 Branch Regions . Pre-discovered Areas . | . . Known Exits Taken . | . . Unknown Exits Taken 1 | 1 . Scrap Searched . | . . Spaces Dug . | . . Terrain Destroyed 20 | . 20 Melee . | . . Projectile . | . . AOE 20 | . 20 Terrain Rammed . | . . Walls Destroyed . | . . Machines Disabled . | . . Actions | -11 -10 --------- Run | Scr Mat Total 401 | 152 249 Wait . | . . Move 358 | 130 228 Hop . | . . Pick Up 13 | 9 4 Fast Attach . | . . Attach 9 | 7 2 Detach 1 | 1 . Swap . | . . Drop 3 | 3 . Fire 15 | 1 14 Melee . | . . Ram 2 | 1 1 Kick . | . . Crush . | . . Escape Stasis . | . . Rewire . | . . Trap . | . . Miscellaneous . | . . Route ------- -11/Scrapyard -10/Materials History --------- Turn | Location | Event 2 | -11/Scrapyard | Met Revision 17 81 | -11/Scrapyard | Discovered new exit (range 8) 104 | -11/Scrapyard | Entered Materials 229 | -10/Materials | Core integrity fell below 50% 237 | -10/Materials | Core integrity fell below 20% 263 | -10/Materials | Lost 8 parts (1p2n1u4w) 292 | -10/Materials | Destroyed by G-47 Trooper with Particle Gun Last Messages --------------- Wheel destroyed. Med. Matter Pod destroyed. U-05 Engineer lays Concrete. Welding Torch destroyed. U-05 Engineer lays Concrete. U-05 Engineer destroyed. Acquired 1 matter. U-05 Engineer lays Concrete. U-05 Engineer builds a Wall. Acquired Aluminum Leg. U-05 Engineer lays Concrete. U-05 Engineer builds a Door. G-34 Mercenary destroyed. Terminal disabled. Slammed into U-05 Engineer. U-05 Engineer builds a Wall. K-01 Serf collects debris. Acquired Wheel. K-01 Serf cleans the Matter Filter. [Achievement: First Step to Greatness] Map ----- +----------------------------------------------------+ | ????????????# #?????????????????? | | ????????????# #?????????????????? | | ????????????# #?????????????????? | | ????????????# #?????????????????? | | ????????????# #?????????????????? | | ????????????# #?????????????????? | | ????????????# #?????????????????? | | ????????????# ########??????????? | | ????????????# #??????????? | | ????????????# #??????????? | | ????????????# #??????????? | | ????????????######## #??????????? | | ????????????# # #??????????? | | ????????????#""" # #??????????? | | ????????????#""" + #??????????? | | ????????????#""" # #??????????? | | ????????????#""" # ##########?? | | ????????????# # # #?? | | ????????????######## # """"" #?? | | ???????????????????# # """"" #?? | | ???????????????????# # """"" #?? | | ???????????????????# + """"" #?? | | ????????????# #g """"" #?? | | ????????????# # """"" #?? | | ????????? # """"" #?? | | ????????######+######### @ #?? | | ???????????????????????##########?? | | ??????????????????????????????????? | | ??????????????????????????????????? | | ??????????????????????????????????? | | ??????????????????????????????????? | | ??????????????????????????????????? | | ??????????????????????????????????? | | ??????????????????????????????????? | | ??????????????????????????????????? | | ??????????????????????????????????? | | ??????????????????????????????????? | | ??????????????????????????????????? | | ??????????????????????????????????? | | ??????????????????????????????????? | | ??????????????????????????????????? | | ??????????????????????????????????? | | ??????????????????????????????????? | | ??????????????????????????????????? | | | | | | | | | | | | | +----------------------------------------------------+ Best States ------------- Heat Dissipation 25 Energy Generation 10 Energy Capacity 125 Matter Stores 324 Matter Capacity 400 Sight Range 16 Terrain Scan Density 10 Evasion (%) 50 Item Schematics ----------------- None Robot Schematics ------------------ None Fabricated ------------ Nothing Alien Tech Used ----------------- None Achievements -------------- First Step to Greatness Uninvited Guest Challenges ------------ None Game ------ Seed BoreIntegrityCoupler Manual? 0 Play Time 00:10:00 Cumulative 0.3 hours Start 2022.04.03 @ 15:08:31 End 2022.04.03 @ 15:20:38 Sessions 1 Manual Loads 0 Difficulty Rogue Special Mode None Game No. 1 Rogue 1 Adventurer 0 Explorer 0 Win Type - Total 0 Types 0/0/0/0/0/0/0/0/0 Lore% 0 Gallery% 0 Achievement% 0 Wizard Run 0 Options --------- ASCII 0 Keyboard 0 Movement Arrows Keybinds 0 Fullscreen 2 Font 18/X11Bold Map View 76x50 Tactical HUD 0 Map Filters NONE Filters NONE Steam 1 RUN: 22f60fd8-1c6b-4aa7-addc-6e24a5c4c706